[Event "*** Titled Tuesday Blitz"]
[Site "Chess.com"]
[Date "2020.05.12"]
[Round "5"]
[White "noblerone"]
[Black "vinniethepooh"]
[Result "1/2-1/2"]
[WhiteElo "2421"]
[BlackElo "2615"]
[TimeControl "180+1"]
[EndTime "10:58:38 PDT"]
[Termination "Game drawn by 50-move rule"]

1. d4 {[%clk 0:03:00.9]} 1... Nf6 {[%clk 0:02:58]} 2. Bg5 {[%clk 0:02:59.9]}
2... e6 {[%clk 0:02:56.8]} 3. Nd2 {[%clk 0:02:58.8]} 3... d5 {[%clk 0:02:55.2]}
4. e3 {[%clk 0:02:58.6]} 4... Be7 {[%clk 0:02:55]} 5. Bd3 {[%clk 0:02:58.4]}
5... c5 {[%clk 0:02:53.6]} 6. c3 {[%clk 0:02:58.3]} 6... Nc6 {[%clk 0:02:53.8]}
7. f4 {[%clk 0:02:56.7]} 7... h6 {[%clk 0:02:48.8]} 8. Bh4 {[%clk 0:02:55.6]}
8... Nd7 {[%clk 0:02:46.6]} 9. Bxe7 {[%clk 0:02:55.2]} 9... Qxe7 {[%clk
0:02:40.6]} 10. Ngf3 {[%clk 0:02:47.9]} 10... b6 {[%clk 0:02:39]} 11. O-O {[%clk
0:02:45.9]} 11... Bb7 {[%clk 0:02:38.7]} 12. Ne5 {[%clk 0:02:42.5]} 12... a6
{[%clk 0:02:33.7]} 13. a4 {[%clk 0:02:40.9]} 13... Rc8 {[%clk 0:02:16.2]} 14.
Qe2 {[%clk 0:02:36.6]} 14... c4 {[%clk 0:02:06.7]} 15. Bc2 {[%clk 0:02:36.7]}
15... b5 {[%clk 0:01:55.6]} 16. axb5 {[%clk 0:02:31.7]} 16... axb5 {[%clk
0:01:56.5]} 17. Qg4 {[%clk 0:01:46]} 17... Kf8 {[%clk 0:01:05.2]} 18. Nxd7+
{[%clk 0:01:20.8]} 18... Qxd7 {[%clk 0:01:06.1]} 19. Nf3 {[%clk 0:01:21.3]}
19... f5 {[%clk 0:01:03]} 20. Qg3 {[%clk 0:01:15.3]} 20... Kf7 {[%clk
0:00:54.9]} 21. Qh3 {[%clk 0:00:57]} 21... Ra8 {[%clk 0:00:50.1]} 22. g4 {[%clk
0:00:54.8]} 22... g6 {[%clk 0:00:38.2]} 23. Rxa8 {[%clk 0:00:50]} 23... Bxa8
{[%clk 0:00:39.1]} 24. Ra1 {[%clk 0:00:42.7]} 24... Bb7 {[%clk 0:00:34.3]} 25.
Qg3 {[%clk 0:00:36.7]} 25... Ra8 {[%clk 0:00:31.5]} 26. Rxa8 {[%clk 0:00:36.2]}
26... Bxa8 {[%clk 0:00:32.4]} 27. Qh4 {[%clk 0:00:34.3]} 27... Kg7 {[%clk
0:00:30.7]} 28. g5 {[%clk 0:00:24.7]} 28... h5 {[%clk 0:00:29.9]} 29. Qe1 {[%clk
0:00:25.3]} 29... Qa7 {[%clk 0:00:28.6]} 30. Qb1 {[%clk 0:00:24.6]} 30... Bb7
{[%clk 0:00:25.3]} 31. Kf2 {[%clk 0:00:22.6]} 31... Qa5 {[%clk 0:00:25.1]} 32.
Nh4 {[%clk 0:00:16.3]} 32... b4 {[%clk 0:00:23.9]} 33. Qe1 {[%clk 0:00:11.1]}
33... b3 {[%clk 0:00:22.5]} 34. Bd1 {[%clk 0:00:09.9]} 34... Qa1 {[%clk
0:00:21.5]} 35. Qd2 {[%clk 0:00:10.8]} 35... Ne7 {[%clk 0:00:20]} 36. Nf3 {[%clk
0:00:10.5]} 36... Nc8 {[%clk 0:00:19.7]} 37. Ne5 {[%clk 0:00:10.7]} 37... Nd6
{[%clk 0:00:20]} 38. Bf3 {[%clk 0:00:10.7]} 38... Qb1 {[%clk 0:00:18.4]} 39. Nd7
{[%clk 0:00:10.3]} 39... Qc2 {[%clk 0:00:16.7]} 40. Ke2 {[%clk 0:00:09.7]} 40...
Qb1 {[%clk 0:00:13.1]} 41. Nc5 {[%clk 0:00:09.6]} 41... Bc8 {[%clk 0:00:12.2]}
42. Na4 {[%clk 0:00:09]} 42... Kf7 {[%clk 0:00:11.6]} 43. Nc5 {[%clk 0:00:09.5]}
43... Ke7 {[%clk 0:00:11.5]} 44. h4 {[%clk 0:00:10]} 44... Nb5 {[%clk
0:00:11.2]} 45. Na4 {[%clk 0:00:08]} 45... Kd6 {[%clk 0:00:11.2]} 46. Nc5 {[%clk
0:00:08.3]} 46... Nc7 {[%clk 0:00:11.4]} 47. Na4 {[%clk 0:00:08.1]} 47... Kc6
{[%clk 0:00:11.8]} 48. Nc5 {[%clk 0:00:08.3]} 48... Kb5 {[%clk 0:00:11.3]} 49.
Bg2 {[%clk 0:00:07.1]} 49... Qa1 {[%clk 0:00:09.7]} 50. Bf3 {[%clk 0:00:06.9]}
50... Na6 {[%clk 0:00:09.6]} 51. Nxa6 {[%clk 0:00:06.5]} 51... Bxa6 {[%clk
0:00:10.5]} 52. Bg2 {[%clk 0:00:07]} 52... Ka4 {[%clk 0:00:09.6]} 53. Kf2 {[%clk
0:00:06.4]} 53... Qb1 {[%clk 0:00:09]} 54. Ke2 {[%clk 0:00:06.8]} 54... Bb5
{[%clk 0:00:07.1]} 55. Kf2 {[%clk 0:00:07.1]} 55... Bc6 {[%clk 0:00:07.5]} 56.
Ke2 {[%clk 0:00:07.4]} 56... Bb7 {[%clk 0:00:07.9]} 57. Kf2 {[%clk 0:00:07.9]}
57... Qc2 {[%clk 0:00:07.9]} 58. Ke2 {[%clk 0:00:08.1]} 58... Bc8 {[%clk
0:00:07.9]} 59. Bf3 {[%clk 0:00:06.2]} 59... Ba6 {[%clk 0:00:07.1]} 60. Bg2
{[%clk 0:00:06.2]} 60... Qb1 {[%clk 0:00:05]} 61. Kf2 {[%clk 0:00:06]} 61... Kb5
{[%clk 0:00:04.4]} 62. Bf3 {[%clk 0:00:05.6]} 62... Kc6 {[%clk 0:00:04.8]} 63.
Bg2 {[%clk 0:00:06]} 63... Bb5 {[%clk 0:00:05.1]} 64. Bf3 {[%clk 0:00:06.5]}
64... Kd6 {[%clk 0:00:05.2]} 65. Bg2 {[%clk 0:00:07]} 65... Ba4 {[%clk
0:00:04.1]} 66. Bf3 {[%clk 0:00:06.8]} 66... Qa1 {[%clk 0:00:04.6]} 67. Bg2
{[%clk 0:00:06.9]} 67... Bd7 {[%clk 0:00:05]} 68. Bf3 {[%clk 0:00:07]} 68... Kc6
{[%clk 0:00:05.2]} 69. Bg2 {[%clk 0:00:07.4]} 69... Kb6 {[%clk 0:00:05.8]} 70.
Bf3 {[%clk 0:00:07.9]} 70... Be8 {[%clk 0:00:06.1]} 71. Bg2 {[%clk 0:00:08.3]}
71... Qb1 {[%clk 0:00:06.6]} 72. Bf3 {[%clk 0:00:08.2]} 72... Qc2 {[%clk
0:00:07.2]} 73. Ke2 {[%clk 0:00:08.6]} 73... Qb1 {[%clk 0:00:05.7]} 74. Kf2
{[%clk 0:00:07.7]} 74... Bb5 {[%clk 0:00:06.1]} 75. Bg2 {[%clk 0:00:07.6]} 75...
Ba6 {[%clk 0:00:05.7]} 76. Bf3 {[%clk 0:00:07.8]} 76... Ka5 {[%clk 0:00:05.4]}
77. Bg2 {[%clk 0:00:08.1]} 77... Ka4 {[%clk 0:00:05.9]} 78. Bf3 {[%clk
0:00:08.4]} 78... Qc2 {[%clk 0:00:06.3]} 79. Ke2 {[%clk 0:00:08.4]} 79... Qb1
{[%clk 0:00:06.4]} 80. Kf2 {[%clk 0:00:08.3]} 80... Bb5 {[%clk 0:00:06.2]} 81.
Bg2 {[%clk 0:00:07.9]} 81... Ka5 {[%clk 0:00:06.6]} 82. Bf3 {[%clk 0:00:07.7]}
82... Ba4 {[%clk 0:00:07.1]} 83. Bg2 {[%clk 0:00:07.8]} 83... Bc6 {[%clk
0:00:06]} 84. Bf3 {[%clk 0:00:07.9]} 84... Bb7 {[%clk 0:00:05.3]} 85. Bg2 {[%clk
0:00:08]} 85... Bc8 {[%clk 0:00:05.8]} 86. Bf3 {[%clk 0:00:08.2]} 86... Bd7
{[%clk 0:00:06.3]} 87. Bg2 {[%clk 0:00:08.6]} 87... Ka4 {[%clk 0:00:06.8]} 88.
Bf3 {[%clk 0:00:08.6]} 88... Qa1 {[%clk 0:00:07.2]} 89. Bg2 {[%clk 0:00:08.6]}
89... Qa2 {[%clk 0:00:07.5]} 90. Bf3 {[%clk 0:00:08.8]} 90... Qb1 {[%clk
0:00:07.8]} 91. Bg2 {[%clk 0:00:09]} 91... Qc2 {[%clk 0:00:08.2]} 92. Ke2 {[%clk
0:00:08.9]} 92... Bb5 {[%clk 0:00:07.4]} 93. Bf3 {[%clk 0:00:08]} 93... Qb1
{[%clk 0:00:06.8]} 94. Bg2 {[%clk 0:00:08.1]} 94... Qg1 {[%clk 0:00:06.3]} 95.
Kf3 {[%clk 0:00:06.7]} 95... Bc6 {[%clk 0:00:03.6]} 96. Kg3 {[%clk 0:00:02]}
96... Bd7 {[%clk 0:00:03.3]} 97. Kf3 {[%clk 0:00:01.8]} 97... Kb5 {[%clk
0:00:03.8]} 98. Kg3 {[%clk 0:00:01.8]} 98... Kb6 {[%clk 0:00:04.2]} 99. Kf3
{[%clk 0:00:02]} 99... Ba4 {[%clk 0:00:04.7]} 100. Kg3 {[%clk 0:00:02.6]} 100...
Kb5 {[%clk 0:00:05.1]} 101. Kf3 {[%clk 0:00:03]} 101... Qh2 {[%clk 0:00:05.2]}
1/2-1/2

[Event "*** Titled Tuesday Blitz"]
[Site "Chess.com"]
[Date "2020.05.12"]
[Round "5"]
[White "Ladislav1969"]
[Black "Karacsonyi_Gellert"]
[Result "1/2-1/2"]
[WhiteElo "2347"]
[BlackElo "2486"]
[TimeControl "180+1"]
[EndTime "10:58:43 PDT"]
[Termination "Game drawn by repetition"]

1. e4 {[%clk 0:03:00.9]} 1... c5 {[%clk 0:02:59.8]} 2. d4 {[%clk 0:03:00.8]}
2... cxd4 {[%clk 0:02:59.7]} 3. c3 {[%clk 0:03:01.5]} 3... Nf6 {[%clk
0:03:00.2]} 4. e5 {[%clk 0:03:01.3]} 4... Nd5 {[%clk 0:03:00.8]} 5. Nf3 {[%clk
0:03:02]} 5... e6 {[%clk 0:03:01.2]} 6. cxd4 {[%clk 0:03:01.6]} 6... d6 {[%clk
0:03:01.6]} 7. Nc3 {[%clk 0:03:00.5]} 7... Nxc3 {[%clk 0:03:00.2]} 8. bxc3
{[%clk 0:03:00.8]} 8... dxe5 {[%clk 0:03:00.8]} 9. Nxe5 {[%clk 0:03:01.1]} 9...
Nc6 {[%clk 0:03:01.3]} 10. Nxc6 {[%clk 0:02:59.6]} 10... bxc6 {[%clk 0:03:02.2]}
11. Bd3 {[%clk 0:02:57.5]} 11... Be7 {[%clk 0:03:02.4]} 12. O-O {[%clk
0:02:57.2]} 12... O-O {[%clk 0:03:03]} 13. Qf3 {[%clk 0:02:54.7]} 13... Bb7
{[%clk 0:02:59.3]} 14. Qe4 {[%clk 0:02:54.6]} 14... g6 {[%clk 0:02:57.5]} 15.
Rb1 {[%clk 0:02:54.4]} 15... Rb8 {[%clk 0:02:53.5]} 16. Bh6 {[%clk 0:02:51.6]}
16... Re8 {[%clk 0:02:53.1]} 17. Rfd1 {[%clk 0:02:49.7]} 17... Bf8 {[%clk
0:02:42.6]} 18. Bf4 {[%clk 0:02:48.6]} 18... Bd6 {[%clk 0:02:42.1]} 19. Be5
{[%clk 0:02:45.8]} 19... Bxe5 {[%clk 0:02:37.9]} 20. dxe5 {[%clk 0:02:38]} 20...
Qd5 {[%clk 0:02:38.1]} 21. Bc2 {[%clk 0:02:20.9]} 21... Qxa2 {[%clk 0:01:54.3]}
22. h4 {[%clk 0:01:39.3]} 22... Ba8 {[%clk 0:01:50.5]} 23. h5 {[%clk 0:01:37.2]}
23... c5 {[%clk 0:01:47]} 24. Qd3 {[%clk 0:01:25.5]} 24... Rxb1 {[%clk
0:01:36.7]} 25. Rxb1 {[%clk 0:01:09.4]} 25... Qd5 {[%clk 0:01:36.6]} 26. f3
{[%clk 0:01:03.4]} 26... Qxd3 {[%clk 0:01:34.9]} 27. Bxd3 {[%clk 0:01:03.6]}
27... Rd8 {[%clk 0:01:34.8]} 28. Bc4 {[%clk 0:00:59.4]} 28... Kg7 {[%clk
0:01:31.3]} 29. hxg6 {[%clk 0:00:54.6]} 29... hxg6 {[%clk 0:01:32.1]} 30. Ra1
{[%clk 0:00:54.9]} 30... Rd7 {[%clk 0:01:13.1]} 31. Ra5 {[%clk 0:00:54.4]} 31...
Rc7 {[%clk 0:01:10.3]} 32. Kf2 {[%clk 0:00:53.6]} 32... Bd5 {[%clk 0:01:10.1]}
33. Bb5 {[%clk 0:00:45.2]} 33... Rb7 {[%clk 0:01:06.3]} 34. c4 {[%clk
0:00:40.8]} 34... a6 {[%clk 0:00:58.2]} 35. Rxa6 {[%clk 0:00:38.5]} 35... Rb8
{[%clk 0:00:55.1]} 36. cxd5 {[%clk 0:00:35.4]} 36... Rxb5 {[%clk 0:00:55.5]} 37.
d6 {[%clk 0:00:35.4]} 37... Rb2+ {[%clk 0:00:54.8]} 38. Ke3 {[%clk 0:00:33.7]}
38... Rb3+ {[%clk 0:00:55.2]} 39. Kd2 {[%clk 0:00:31.4]} 39... c4 {[%clk
0:00:54]} 40. Rc6 {[%clk 0:00:28]} 40... Rd3+ {[%clk 0:00:50.7]} 41. Kc2 {[%clk
0:00:28.1]} 41... f6 {[%clk 0:00:49]} 42. Rxc4 {[%clk 0:00:24.4]} 42... Rd5
{[%clk 0:00:49.4]} 43. Rc7+ {[%clk 0:00:23.4]} 43... Kh6 {[%clk 0:00:49.7]} 44.
exf6 {[%clk 0:00:14.9]} 44... Rxd6 {[%clk 0:00:49.9]} 45. Re7 {[%clk 0:00:14.7]}
45... e5 {[%clk 0:00:39]} 46. Kc3 {[%clk 0:00:12.7]} 46... Rxf6 {[%clk
0:00:38.1]} 47. Rxe5 {[%clk 0:00:13.2]} 47... Ra6 {[%clk 0:00:38.3]} 48. Re2
{[%clk 0:00:11.3]} 48... Ra4 {[%clk 0:00:37.2]} 49. Kd3 {[%clk 0:00:11.2]} 49...
Kg7 {[%clk 0:00:37.3]} 50. Ke3 {[%clk 0:00:11.4]} 50... Rb4 {[%clk 0:00:37]} 51.
Kf2 {[%clk 0:00:12.3]} 51... Ra4 {[%clk 0:00:35.8]} 52. g3 {[%clk 0:00:13.2]}
52... Rb4 {[%clk 0:00:36.1]} 53. Re4 {[%clk 0:00:14.1]} 53... Rb2+ {[%clk
0:00:34.9]} 54. Ke3 {[%clk 0:00:14]} 54... Rb3+ {[%clk 0:00:34.5]} 55. Kf4
{[%clk 0:00:14.2]} 55... Ra3 {[%clk 0:00:35.2]} 56. Kg4 {[%clk 0:00:14.5]} 56...
Rb3 {[%clk 0:00:34.9]} 57. Rc4 {[%clk 0:00:14.6]} 57... Ra3 {[%clk 0:00:35]} 58.
f4 {[%clk 0:00:14.4]} 58... Rb3 {[%clk 0:00:33.3]} 59. Kh4 {[%clk 0:00:14.5]}
59... Ra3 {[%clk 0:00:29.9]} 60. g4 {[%clk 0:00:14.9]} 60... Rb3 {[%clk
0:00:30.2]} 61. Rc7+ {[%clk 0:00:14.3]} 61... Kg8 {[%clk 0:00:19.2]} 62. Rc6
{[%clk 0:00:15.2]} 62... Kg7 {[%clk 0:00:19]} 63. Rc5 {[%clk 0:00:13.4]} 63...
Rb4 {[%clk 0:00:17]} 64. Kg5 {[%clk 0:00:13.3]} 64... Rb7 {[%clk 0:00:17.2]} 65.
Rd5 {[%clk 0:00:12.1]} 65... Ra7 {[%clk 0:00:16.5]} 66. Rb5 {[%clk 0:00:12]}
66... Rc7 {[%clk 0:00:16.3]} 67. Ra5 {[%clk 0:00:10.7]} 67... Rb7 {[%clk
0:00:16.2]} 68. Ra6 {[%clk 0:00:10.8]} 68... Rb5+ {[%clk 0:00:15.8]} 69. Kh4
{[%clk 0:00:11]} 69... Rb7 {[%clk 0:00:15]} 70. g5 {[%clk 0:00:10.2]} 70... Rb1
{[%clk 0:00:14.1]} 71. Kg4 {[%clk 0:00:10.4]} 71... Rg1+ {[%clk 0:00:14]} 72.
Kf3 {[%clk 0:00:10.7]} 72... Rf1+ {[%clk 0:00:14.4]} 73. Ke4 {[%clk 0:00:11.1]}
73... Re1+ {[%clk 0:00:14.6]} 74. Kd5 {[%clk 0:00:11.4]} 74... Rd1+ {[%clk
0:00:13.8]} 75. Ke6 {[%clk 0:00:11.2]} 75... Re1+ {[%clk 0:00:14.1]} 76. Kd7
{[%clk 0:00:11]} 76... Rf1 {[%clk 0:00:13.1]} 77. Ra4 {[%clk 0:00:10.5]} 77...
Rd1+ {[%clk 0:00:12.6]} 78. Ke6 {[%clk 0:00:10.6]} 78... Re1+ {[%clk 0:00:12.7]}
79. Kd5 {[%clk 0:00:10.9]} 79... Rd1+ {[%clk 0:00:12.9]} 80. Ke5 {[%clk
0:00:10.8]} 80... Re1+ {[%clk 0:00:12.8]} 81. Re4 {[%clk 0:00:11.4]} 81... Ra1
{[%clk 0:00:13.1]} 82. Ke6 {[%clk 0:00:10.9]} 82... Ra6+ {[%clk 0:00:12.8]} 83.
Kd5 {[%clk 0:00:11.2]} 83... Ra5+ {[%clk 0:00:13]} 84. Kd4 {[%clk 0:00:11.5]}
84... Ra4+ {[%clk 0:00:12.9]} 85. Ke3 {[%clk 0:00:12.1]} 85... Ra3+ {[%clk
0:00:13.2]} 86. Kf2 {[%clk 0:00:12.5]} 86... Ra2+ {[%clk 0:00:13.3]} 87. Kg3
{[%clk 0:00:12.5]} 87... Ra3+ {[%clk 0:00:13.7]} 88. Kg4 {[%clk 0:00:13.1]}
88... Ra1 {[%clk 0:00:13.7]} 89. Re7+ {[%clk 0:00:13]} 89... Kf8 {[%clk
0:00:13.8]} 90. Rd7 {[%clk 0:00:12.4]} 90... Rg1+ {[%clk 0:00:13.7]} 91. Kf3
{[%clk 0:00:12.6]} 91... Rf1+ {[%clk 0:00:13.9]} 92. Ke4 {[%clk 0:00:12.9]}
92... Re1+ {[%clk 0:00:13.8]} 93. Kd5 {[%clk 0:00:12.8]} 93... Kg8 {[%clk
0:00:09.2]} 94. Rd6 {[%clk 0:00:08.7]} 94... Kf7 {[%clk 0:00:08.4]} 95. Rf6+
{[%clk 0:00:08.5]} 95... Kg7 {[%clk 0:00:08.7]} 96. Re6 {[%clk 0:00:08.8]} 96...
Rd1+ {[%clk 0:00:07.8]} 97. Ke5 {[%clk 0:00:07.9]} 97... Re1+ {[%clk 0:00:07.8]}
98. Kd6 {[%clk 0:00:08.1]} 98... Rd1+ {[%clk 0:00:07.8]} 99. Ke7 {[%clk
0:00:08.5]} 99... Ra1 {[%clk 0:00:08.7]} 100. Rd6 {[%clk 0:00:08.1]} 100... Re1+
{[%clk 0:00:08.3]} 101. Kd7 {[%clk 0:00:08.2]} 101... Rf1 {[%clk 0:00:08.2]}
102. Rd4 {[%clk 0:00:07.6]} 102... Ra1 {[%clk 0:00:08.1]} 103. Kd6 {[%clk
0:00:07.8]} 103... Ra6+ {[%clk 0:00:07.9]} 104. Ke5 {[%clk 0:00:07.9]} 104...
Ra5+ {[%clk 0:00:07.9]} 105. Rd5 {[%clk 0:00:08.4]} 105... Ra7 {[%clk
0:00:06.9]} 106. Rc5 {[%clk 0:00:07.7]} 106... Re7+ {[%clk 0:00:05.2]} 107. Kd6
{[%clk 0:00:07.4]} 107... Re4 {[%clk 0:00:05.5]} 108. Rc7+ {[%clk 0:00:06.9]}
108... Kg8 {[%clk 0:00:05.8]} 109. Rc8+ {[%clk 0:00:06.9]} 109... Kg7 {[%clk
0:00:06.1]} 110. Rc7+ {[%clk 0:00:07.1]} 110... Kg8 {[%clk 0:00:06.3]} 111. Rc8+
{[%clk 0:00:07.5]} 111... Kg7 {[%clk 0:00:06.1]} 112. Rc7+ {[%clk 0:00:07.7]}
1/2-1/2

[Event "*** Titled Tuesday Blitz"]
[Site "Chess.com"]
[Date "2020.05.12"]
[Round "6"]
[White "Alexander_Moskalenko"]
[Black "viditchess"]
[Result "0-1"]
[WhiteElo "2819"]
[BlackElo "2961"]
[TimeControl "180+1"]
[EndTime "11:00:58 PDT"]
[Termination "viditchess won by resignation"]

1. d4 {[%clk 0:03:00.9]} 1... Nf6 {[%clk 0:02:59.8]} 2. c4 {[%clk 0:03:00.6]}
2... e6 {[%clk 0:03:00]} 3. g3 {[%clk 0:03:00.5]} 3... c5 {[%clk 0:02:57.2]} 4.
Nf3 {[%clk 0:02:57.4]} 4... cxd4 {[%clk 0:02:57.2]} 5. Nxd4 {[%clk 0:02:58.3]}
5... d5 {[%clk 0:02:55.5]} 6. Bg2 {[%clk 0:02:55]} 6... e5 {[%clk 0:02:55.9]} 7.
Nb3 {[%clk 0:02:50.6]} 7... d4 {[%clk 0:02:56.3]} 8. O-O {[%clk 0:02:49.5]} 8...
Nc6 {[%clk 0:02:56]} 9. e3 {[%clk 0:02:49.2]} 9... d3 {[%clk 0:02:52]} 10. Nc3
{[%clk 0:02:45.7]} 10... Be6 {[%clk 0:02:46]} 11. Nd2 {[%clk 0:02:28.8]} 11...
h5 {[%clk 0:02:45]} 12. e4 {[%clk 0:02:27.3]} 12... h4 {[%clk 0:02:39.1]} 13.
Nd5 {[%clk 0:02:27.2]} 13... hxg3 {[%clk 0:02:35.4]} 14. hxg3 {[%clk 0:02:28.1]}
14... Nd4 {[%clk 0:02:31.7]} 15. Nf3 {[%clk 0:02:17.1]} 15... Ne2+ {[%clk
0:02:29.5]} 0-1

[Event "*** Titled Tuesday Blitz"]
[Site "Chess.com"]
[Date "2020.05.12"]
[Round "6"]
[White "TrenerChos"]
[Black "HarryCun"]
[Result "1-0"]
[WhiteElo "2395"]
[BlackElo "2190"]
[TimeControl "180+1"]
[EndTime "11:01:07 PDT"]
[Termination "TrenerChos won by resignation"]

1. e4 {[%clk 0:03:00.9]} 1... c6 {[%clk 0:02:57]} 2. d4 {[%clk 0:02:58.7]} 2...
d5 {[%clk 0:02:57.5]} 3. e5 {[%clk 0:02:59.1]} 3... Bf5 {[%clk 0:02:57]} 4. Nf3
{[%clk 0:02:59.6]} 4... e6 {[%clk 0:02:57.2]} 5. Be2 {[%clk 0:03:00.1]} 5... Ne7
{[%clk 0:02:57.5]} 6. O-O {[%clk 0:03:00]} 6... Nd7 {[%clk 0:02:58.1]} 7. Be3
{[%clk 0:02:57.2]} 7... c5 {[%clk 0:02:57.9]} 8. c4 {[%clk 0:02:55.9]} 8... Nc6
{[%clk 0:02:58.8]} 9. cxd5 {[%clk 0:02:55.3]} 9... exd5 {[%clk 0:02:59.7]} 10.
Nc3 {[%clk 0:02:53.6]} 10... cxd4 {[%clk 0:02:59.6]} 11. Nxd4 {[%clk 0:02:52.9]}
11... Nxd4 {[%clk 0:02:58.9]} 12. Qxd4 {[%clk 0:02:51.3]} 12... Bc5 {[%clk
0:02:55.2]} 13. Qxd5 {[%clk 0:02:43.6]} 13... Bxe3 {[%clk 0:02:54.7]} 14. fxe3
{[%clk 0:02:40.8]} 14... Be6 {[%clk 0:02:55.6]} 15. Qxb7 {[%clk 0:02:39.7]}
15... O-O {[%clk 0:02:53.5]} 16. Qe4 {[%clk 0:02:30.9]} 16... Qb6 {[%clk
0:02:52.1]} 17. Qd4 {[%clk 0:02:21.9]} 17... Qxb2 {[%clk 0:02:39]} 18. Rfb1
{[%clk 0:02:15.2]} 18... Qc2 {[%clk 0:02:38.7]} 19. Bd3 {[%clk 0:02:13]} 19...
Qd2 {[%clk 0:02:38.5]} 20. Bxh7+ {[%clk 0:02:12.2]} 1-0

[Event "*** Titled Tuesday Blitz"]
[Site "Chess.com"]
[Date "2020.05.12"]
[Round "6"]
[White "Stewie_89"]
[Black "XiaoKangZhong"]
[Result "1-0"]
[WhiteElo "2620"]
[BlackElo "2406"]
[TimeControl "180+1"]
[EndTime "11:01:13 PDT"]
[Termination "Stewie_89 won by checkmate"]

1. e4 {[%clk 0:03:00.9]} 1... c6 {[%clk 0:03:00]} 2. d4 {[%clk 0:03:00.3]} 2...
d5 {[%clk 0:03:00.9]} 3. Nd2 {[%clk 0:03:00.5]} 3... dxe4 {[%clk 0:02:58.8]} 4.
Nxe4 {[%clk 0:03:01.4]} 4... Nf6 {[%clk 0:02:59.3]} 5. Nxf6+ {[%clk 0:03:00.7]}
5... exf6 {[%clk 0:03:00.2]} 6. Be3 {[%clk 0:03:00.9]} 6... Bd6 {[%clk
0:02:59.2]} 7. Bd3 {[%clk 0:02:57.2]} 7... O-O {[%clk 0:03:00.1]} 8. Qd2 {[%clk
0:02:56.1]} 8... Nd7 {[%clk 0:02:52.9]} 9. Ne2 {[%clk 0:02:52.1]} 9... Qc7
{[%clk 0:02:48.5]} 10. O-O-O {[%clk 0:02:51]} 10... b5 {[%clk 0:02:46.5]} 11. g4
{[%clk 0:02:50]} 11... Nb6 {[%clk 0:02:39.1]} 12. g5 {[%clk 0:02:48.2]} 12...
fxg5 {[%clk 0:02:38.7]} 13. Bxg5 {[%clk 0:02:45.4]} 13... b4 {[%clk 0:02:37.1]}
14. h4 {[%clk 0:02:38.3]} 14... a5 {[%clk 0:02:35.3]} 15. Rdg1 {[%clk
0:02:37.7]} 15... Re8 {[%clk 0:02:29.2]} 16. Bf6 {[%clk 0:02:24.4]} 16... Bf8
{[%clk 0:02:27.4]} 17. Rxg7+ {[%clk 0:02:20.1]} 17... Bxg7 {[%clk 0:02:18.2]}
18. Qg5 {[%clk 0:02:18.9]} 18... Qb7 {[%clk 0:02:16.5]} 19. Qxg7# {[%clk
0:02:17.9]} 1-0

[Event "*** Titled Tuesday Blitz"]
[Site "Chess.com"]
[Date "2020.05.12"]
[Round "6"]
[White "ezkybel"]
[Black "Beca95"]
[Result "1/2-1/2"]
[WhiteElo "2522"]
[BlackElo "2896"]
[TimeControl "180+1"]
[EndTime "11:01:19 PDT"]
[Termination "Game drawn by repetition"]

1. e4 {[%clk 0:03:00.9]} 1... c6 {[%clk 0:02:58.8]} 2. d4 {[%clk 0:03:00.8]}
2... d5 {[%clk 0:02:59.4]} 3. f3 {[%clk 0:03:01.3]} 3... e6 {[%clk 0:02:58.2]}
4. Nc3 {[%clk 0:03:01.2]} 4... c5 {[%clk 0:02:55.5]} 5. exd5 {[%clk 0:02:41.3]}
5... exd5 {[%clk 0:02:52.5]} 6. Bb5+ {[%clk 0:02:39.7]} 6... Nc6 {[%clk
0:02:51.5]} 7. Nge2 {[%clk 0:02:40.6]} 7... Nf6 {[%clk 0:02:43]} 8. O-O {[%clk
0:02:39.8]} 8... cxd4 {[%clk 0:02:41.1]} 9. Nxd4 {[%clk 0:02:36.6]} 9... Bc5
{[%clk 0:02:40.2]} 10. Re1+ {[%clk 0:02:35.9]} 10... Be6 {[%clk 0:02:39.5]} 11.
Bxc6+ {[%clk 0:02:35.1]} 11... bxc6 {[%clk 0:02:38.7]} 12. Na4 {[%clk
0:02:32.1]} 12... Bxd4+ {[%clk 0:02:31.3]} 13. Qxd4 {[%clk 0:02:33]} 13... O-O
{[%clk 0:02:29]} 14. Bg5 {[%clk 0:02:31.5]} 14... h6 {[%clk 0:02:28.3]} 15. Bxf6
{[%clk 0:02:30]} 15... Qxf6 {[%clk 0:02:29.2]} 16. Qxf6 {[%clk 0:02:29.9]} 16...
gxf6 {[%clk 0:02:30.1]} 17. Nc5 {[%clk 0:02:30.1]} 17... Rfe8 {[%clk 0:02:30.4]}
18. c3 {[%clk 0:02:28.4]} 18... a5 {[%clk 0:02:28]} 19. Kf2 {[%clk 0:02:27.6]}
19... Kf8 {[%clk 0:02:25.8]} 20. Re2 {[%clk 0:02:27.2]} 20... Ke7 {[%clk
0:02:25.9]} 21. Rae1 {[%clk 0:02:26.5]} 21... Kd6 {[%clk 0:02:26.1]} 22. Nb7+
{[%clk 0:02:20.4]} 22... Kc7 {[%clk 0:02:26.1]} 23. Nc5 {[%clk 0:02:20.9]} 23...
Kd6 {[%clk 0:02:26.6]} 24. Nb7+ {[%clk 0:02:20.9]} 24... Kc7 {[%clk 0:02:23.4]}
25. Nc5 {[%clk 0:02:21]} 25... Kd6 {[%clk 0:02:23.8]} 1/2-1/2

[Event "*** Titled Tuesday Blitz"]
[Site "Chess.com"]
[Date "2020.05.12"]
[Round "6"]
[White "Bossche-CM"]
[Black "PetrolulSah"]
[Result "1-0"]
[WhiteElo "2441"]
[BlackElo "2279"]
[TimeControl "180+1"]
[EndTime "11:01:25 PDT"]
[Termination "Bossche-CM won by resignation"]

1. e4 {[%clk 0:02:32.4]} 1... e5 {[%clk 0:02:58.6]} 2. Nf3 {[%clk 0:02:32.1]}
2... Nc6 {[%clk 0:02:58]} 3. Nc3 {[%clk 0:02:32.6]} 3... Nf6 {[%clk 0:02:56.2]}
4. d4 {[%clk 0:02:32.1]} 4... exd4 {[%clk 0:02:54.1]} 5. Nxd4 {[%clk 0:02:31.6]}
5... Bb4 {[%clk 0:02:53.7]} 6. Nxc6 {[%clk 0:02:30]} 6... bxc6 {[%clk
0:02:52.7]} 7. Bd3 {[%clk 0:02:30.1]} 7... d5 {[%clk 0:02:51.1]} 8. exd5 {[%clk
0:02:31]} 8... cxd5 {[%clk 0:02:50.7]} 9. O-O {[%clk 0:02:31]} 9... O-O {[%clk
0:02:49.7]} 10. h3 {[%clk 0:02:30.4]} 10... c6 {[%clk 0:02:47.1]} 11. Qf3 {[%clk
0:02:26.4]} 11... Qd6 {[%clk 0:02:41.6]} 12. Bf4 {[%clk 0:02:22.5]} 12... Qc5
{[%clk 0:02:40.3]} 13. a3 {[%clk 0:02:14.1]} 13... Bxc3 {[%clk 0:02:39.4]} 14.
bxc3 {[%clk 0:02:15]} 14... Qxc3 {[%clk 0:02:38.9]} 15. Bxh7+ {[%clk 0:02:13.8]}
15... Nxh7 {[%clk 0:02:37.3]} 16. Qxc3 {[%clk 0:02:13.9]} 16... Bd7 {[%clk
0:02:37.5]} 17. Rfe1 {[%clk 0:02:11.5]} 17... Nf6 {[%clk 0:02:36]} 18. Be5
{[%clk 0:02:08.6]} 18... Ne4 {[%clk 0:02:35.7]} 19. Rxe4 {[%clk 0:02:08.5]}
19... dxe4 {[%clk 0:02:36.6]} 20. Bxg7 {[%clk 0:02:08.7]} 20... Rfe8 {[%clk
0:02:35]} 21. Bh6 {[%clk 0:02:07.5]} 21... f6 {[%clk 0:02:25.6]} 22. Qxf6 {[%clk
0:02:07.4]} 1-0